bitfinex/quotes_SOLUSD_20220208
["timestamp","ask_amount","ask_price","bid_price","bid_amount"]
[1644352384432,0.427,112.31,112.21,10.75]
[1644352385334,0.427,112.31,112.22,1.10436009]
[1644352385533,0.427,112.31,112.23,10.75]
[1644352385736,0.427,112.31,112.23,101.6]
[1644352385935,0.427,112.31,112.24,1.10436009]
[1644352386134,0.427,112.31,112.25,10.75]
[1644352387145,0.427,112.31,112.23,10.75]
[1644352387343,43.93357257,112.3,112.23,10.75]
[1644352387546,43.93357257,112.3,112.2,10.75]
[1644352387747,43.93357257,112.3,112.19,24.6052]
[1644352388345,45.86740144,112.27,112.19,24.6052]
[1644352388743,57.91140144,112.27,112.19,24.6052]
[1644352389151,57.91140144,112.27,112.19,10.75]
[1644352389347,71.28020144,112.27,112.17,34.3318]
[1644352391150,71.28020144,112.27,112.15,10.75]
[1644352391351,71.28020144,112.27,112.14,49.6185]
[1644352391556,71.28020144,112.27,112.13,27.35533941]
[1644352391753,6.67436568,112.26,112.13,40.73003941]
[1644352391949,13.374,112.23,112.13,41.8291767]
[1644352392150,41.93366143,112.22,112.13,41.8291767]
[1644352392551,41.93366143,112.22,112.13,40.73003941]
[1644352392752,41.93366143,112.22,112.13,27.35533941]
[1644352392952,0.004,112.27,112.14,135.0]
[1644352393150,11.73102231,112.31,112.2,0.44]
[1644352393351,0.427,112.31,112.21,10.75]
[1644352393749,0.427,112.31,112.19,45.6853]
[1644352393950,11.264,112.31,112.19,56.4353]
[1644352394250,48.46450008,112.3,112.21,13.3678]
[1644352394849,48.46450008,112.3,112.19,56.4353]
[1644352395749,48.46450008,112.3,112.16,24.9245]
[1644352395950,50.57225557,112.3,112.17,10.75]
[1644352396551,48.46450008,112.3,112.17,10.75]
[1644352396751,61.83570008,112.3,112.13,2.46271493]
[1644352396953,0.44,112.28,112.12,67.338]
[1644352397150,53.37030781,112.28,112.12,67.338]
[1644352397351,53.37030781,112.28,112.12,33.5049]
[1644352397551,53.37030781,112.28,112.13,1.09913729]
[1644352397750,53.37030781,112.28,112.14,10.75]
[1644352397950,66.74440781,112.28,112.15,13.375]
[1644352399856,47.97040781,112.28,112.15,14.47413729]
[1644352400055,34.59630781,112.28,112.19,13.3685]
[1644352400253,34.59630781,112.28,112.19,24.1185]
[1644352401054,34.59630781,112.28,112.19,24.3685]
[1644352401654,34.59630781,112.28,112.19,44.99081978]
[1644352401855,34.59630781,112.28,112.19,38.99081978]
[1644352402055,34.59630781,112.28,112.19,44.99081978]
[1644352403458,0.427,112.31,112.19,99.12081978]
[1644352403664,0.427,112.31,112.19,122.97251978]
[1644352403857,0.427,112.31,112.2,188.53]
[1644352404061,0.427,112.31,112.23,13.3586]
[1644352404256,0.427,112.31,112.24,10.75]
[1644352404661,0.427,112.31,112.24,71.13]
[1644352404858,0.427,112.31,112.25,1.09913729]
[1644352405060,0.427,112.31,112.26,10.75]
[1644352405259,0.427,112.31,112.26,24.3608]
[1644352405464,0.427,112.31,112.26,30.3608]
[1644352405685,0.427,112.31,112.26,24.1108]
[1644352409660,0.427,112.31,112.26,24.3608]
[1644352409859,0.427,112.31,112.26,24.1108]
[1644352410859,12.78,112.31,112.26,24.1108]
[1644352411062,35.86243243,112.3,112.26,24.1108]
[1644352411260,0.427,112.31,112.26,24.1108]
[1644352413463,0.427,112.31,112.26,10.75]
[1644352413868,0.427,112.31,112.23,35.1059]
[1644352414065,9.597,112.31,112.23,35.1059]
[1644352414266,43.53117076,112.3,112.23,35.1059]
[1644352414671,43.53117076,112.3,112.23,10.75]
[1644352414868,43.03117076,112.3,112.24,13.3644]
[1644352415070,53.53317076,112.3,112.22,10.75]
[1644352415268,53.53317076,112.3,112.2,24.9959]
[1644352415469,53.53317076,112.3,112.2,35.7459]
[1644352415868,53.53317076,112.3,112.2,36.84503729]
[1644352416074,43.03117076,112.3,112.21,13.3669]
[1644352416272,43.03117076,112.3,112.21,24.3669]
[1644352416671,43.03117076,112.3,112.22,1.10394666]
[1644352417071,43.03117076,112.3,112.22,1.35394666]
[1644352417873,43.03117076,112.3,112.24,13.3633]
[1644352419484,0.427,112.31,112.24,13.3633]
[1644352419676,0.427,112.31,112.25,10.75]
[1644352419876,0.427,112.31,112.26,13.3589]
[1644352420076,0.427,112.31,112.26,24.1089]
[1644352421698,40.19742279,112.33,112.26,24.1089]
[1644352422099,53.55932279,112.33,112.26,24.1089]
[1644352422299,13.3619,112.33,112.26,24.1089]
[1644352422500,13.22074857,112.41,112.26,78.4889]
[1644352422501,2.47074857,112.41,112.26,78.4889]
[1644352422707,26.42198521,112.46,112.27,1.10394666]
[1644352422708,11.33361266,112.42,112.27,1.10394666]
[1644352422908,11.33361266,112.42,112.31,13.3521]
[1644352423107,6.72775174,112.42,112.32,10.75]
[1644352423308,38.48276662,112.41,112.32,11.0]
[1644352424111,38.48276662,112.41,112.35,13.3511]
[1644352426112,13.3505,112.44,112.35,13.3511]
[1644352426312,46.3059,112.47,112.35,13.3511]
[1644352426313,46.3059,112.47,112.36,11.85394666]
[1644352426614,46.3059,112.47,112.39,13.3462]
[1644352426911,6.72385809,112.46,112.39,13.3462]
[1644352427113,44.39165375,112.45,112.39,13.3462]
[1644352427311,135.0,112.44,112.3,134.4]
[1644352427515,46.50767181,112.43,112.29,48.9951]
[1644352427713,92.92657181,112.43,112.29,48.9951]
[1644352427911,92.92657181,112.43,112.3,10.75]
[1644352428711,106.27967181,112.43,112.33,13.3534]
[1644352429514,92.92657181,112.43,112.33,13.6034]
[1644352430415,46.50767181,112.43,112.33,13.6034]
[1644352431018,46.50767181,112.43,112.33,24.3534]
[1644352432438,46.50767181,112.43,112.33,25.45734666]
[1644352432837,46.50767181,112.43,112.33,24.3534]
[1644352433239,46.50767181,112.43,112.33,24.1034]
[1644352433646,46.50767181,112.43,112.33,24.3534]
[1644352433844,46.50767181,112.43,112.33,24.1034]
[1644352434243,46.50767181,112.43,112.33,24.3534]
[1644352435145,46.50767181,112.43,112.33,25.45734666]
[1644352435643,46.50767181,112.43,112.33,24.1034]
[1644352436442,46.50767181,112.43,112.33,79.33734666]
[1644352436642,46.50767181,112.43,112.33,24.1034]
[1644352437345,11.19661493,112.49,112.33,24.1034]
[1644352437543,11.19661493,112.49,112.38,13.3449]
[1644352438042,11.19661493,112.49,112.34,58.9112]
[1644352438244,40.47243791,112.48,112.34,59.1612]
[1644352438446,47.18851811,112.48,112.34,59.1612]
[1644352438744,40.47243791,112.48,112.37,13.3488]
[1644352438945,0.44661493,112.49,112.37,23.5798]
[1644352439145,0.44661493,112.49,112.38,66.74427366]
[1644352439344,0.44661493,112.49,112.39,48.7851]
[1644352439760,0.44661493,112.49,112.41,13.339]
[1644352440561,0.44661493,112.49,112.41,13.589]
[1644352440856,0.44661493,112.49,112.41,34.00325656]
[1644352441256,0.44661493,112.49,112.41,88.13325656]
[1644352441661,0.44661493,112.49,112.41,25.19025656]
[1644352441856,0.44661493,112.49,112.41,24.089]
[1644352443459,13.3433,112.48,112.41,13.339]
[1644352443660,39.80284394,112.47,112.35,69.486]
[1644352443861,39.80284394,112.47,112.35,69.736]
[1644352444062,39.80284394,112.47,112.36,10.75]
[1644352444262,39.80284394,112.47,112.36,64.88]
[1644352444468,39.80284394,112.47,112.38,44.4792]
[1644352444666,39.80284394,112.47,112.39,13.3464]
[1644352445160,39.80284394,112.47,112.39,24.0964]
[1644352445560,39.80284394,112.47,112.39,24.3464]
[1644352446062,39.80284394,112.47,112.39,13.3464]
[1644352446572,39.80284394,112.47,112.38,13.3477]
[1644352446760,65.63824394,112.47,112.38,13.3477]
[1644352446968,67.74599943,112.47,112.32,1.10111684]
[1644352447174,124.63729943,112.47,112.32,10.75]
[1644352447469,124.63729943,112.47,112.29,46.6909]
[1644352447470,125.07729943,112.47,112.29,46.6909]
[1644352447669,137.17159943,112.47,112.31,13.3557]
[1644352448168,10.75,112.46,112.32,1.10111684]
[1644352448370,13.3544,112.42,112.32,1.10111684]
[1644352448668,39.14658732,112.41,112.3,13.3569]
[1644352448869,49.89658732,112.41,112.3,13.3569]
[1644352449070,10.75,112.41,112.3,13.3569]
[1644352449270,13.3518,112.41,112.3,13.3569]
[1644352449474,13.3518,112.41,112.3,36.7654722]
[1644352449877,24.3458,112.41,112.3,24.1069]
[1644352450070,42.52015175,112.4,112.29,13.358]
[1644352450268,10.75,112.39,112.26,2.46271493]
[1644352450472,47.75617607,112.36,112.23,94.27401493]
[1644352450870,47.75617607,112.36,112.23,58.0237]
[1644352451072,47.75617607,112.36,112.24,4.63863273]
[1644352451475,13.3586,112.35,112.25,17.70796761]
[1644352451681,45.45528061,112.34,112.25,17.70796761]
[1644352451871,45.45528061,112.34,112.25,13.3624]
[1644352452472,45.45528061,112.34,112.26,4.34307726]
[1644352452770,13.3579,112.37,112.29,13.3565]
[1644352452971,10.75,112.41,112.29,13.3565]
[1644352453370,10.75,112.41,112.29,13.6065]
[1644352453571,42.29812712,112.4,112.29,13.3565]
[1644352453870,13.3548,112.39,112.29,13.3565]
[1644352454070,43.63796249,112.38,112.29,13.3565]
[1644352454672,43.63796249,112.38,112.29,14.45773945]
[1644352455075,44.5088,112.44,112.29,14.70773945]
[1644352455273,10.75,112.46,112.3,11.06899972]
[1644352455471,10.75,112.46,112.34,13.3496]
[1644352455674,2.10775549,112.48,112.34,13.3496]
[1644352456073,57.11143669,112.47,112.34,13.3496]
[1644352456274,13.3494,112.44,112.34,13.3496]
[1644352456574,45.56353007,112.43,112.34,13.3496]
[1644352458380,58.91513007,112.43,112.34,13.3496]
[1644352458578,58.91513007,112.43,112.34,0.25]
[1644352458875,58.91513007,112.43,112.29,10.75]
[1644352459077,69.66513007,112.43,112.29,10.75]
[1644352459278,78.97713007,112.43,112.27,57.8443]
[1644352459479,81.08488556,112.43,112.28,13.3588]
[1644352459677,98.18493967,112.43,112.28,13.3588]
[1644352460681,98.18493967,112.43,112.28,13.6088]
[1644352461278,98.18493967,112.43,112.28,13.3588]
[1644352461483,0.44,112.41,112.24,2.46271493]
[1644352461680,13.3625,112.36,112.23,10.75]
[1644352461880,35.62833784,112.35,112.23,10.75]
[1644352462081,35.62833784,112.35,112.21,22.8931]
[1644352462280,37.73609333,112.35,112.21,22.8931]
[1644352462481,2.10775549,112.34,112.22,13.3666]
[1644352462679,13.3651,112.32,112.22,13.3666]
[1644352462882,36.86537264,112.31,112.19,57.76631493]
[1644352463080,36.86537264,112.31,112.19,55.3036]
[1644352463683,13.3664,112.3,112.21,13.3677]
[1644352463882,10.75,112.34,112.21,13.3677]
[1644352464081,10.75,112.36,112.22,1.10123945]
[1644352464482,10.75,112.36,112.21,10.75]
[1644352464682,10.75,112.36,112.19,1.10123945]
[1644352464982,42.07327088,112.33,112.2,13.368]
[1644352465183,10.75,112.32,112.2,13.368]
[1644352465385,46.87457184,112.31,112.2,13.368]
[1644352465982,13.3695,112.3,112.19,13.3698]
[1644352466183,41.35844521,112.29,112.16,337.4913237]
[1644352467189,41.35844521,112.29,112.16,337.7413237]
[1644352467785,13.3713,112.27,112.17,13.3713]
[1644352467988,40.33991231,112.26,112.17,13.3713]
[1644352468187,40.33991231,112.26,112.17,13.6213]
[1644352468387,40.33991231,112.26,112.17,13.3713]
[1644352468588,51.61091231,112.26,112.16,337.4913237]
[1644352468789,77.8403678,112.26,112.16,337.4913237]
[1644352469289,75.73261231,112.26,112.16,337.4913237]
[1644352470092,64.46161231,112.26,112.11,123.25]
[1644352470389,53.71161231,112.26,112.12,15.15036159]
[1644352470693,40.33991231,112.26,112.13,3.90036159]
[1644352470891,40.33991231,112.26,112.15,44.5653]
[1644352471091,40.33991231,112.26,112.16,13.3725]
[1644352471395,40.33991231,112.26,112.16,13.6225]
[1644352471790,40.33991231,112.26,112.16,13.3725]
[1644352472189,39.83991231,112.26,112.16,13.3725]
[1644352472593,39.83991231,112.26,112.16,13.6225]
[1644352472791,53.21191231,112.26,112.16,13.6225]
[1644352473913,53.21191231,112.26,112.16,13.3725]
[1644352474912,53.21191231,112.26,112.14,13.3743]
[1644352475114,53.21191231,112.26,112.13,91.1683]
[1644352475515,55.3196678,112.26,112.13,91.1683]
[1644352475719,66.7846678,112.26,112.13,46.5921]
[1644352475913,64.67691231,112.26,112.13,46.5921]
[1644352476116,75.42691231,112.26,112.13,46.5921]
[1644352476315,75.42691231,112.26,112.13,59.9676]
[1644352476515,75.42691231,112.26,112.13,13.3755]
[1644352476714,77.5346678,112.26,112.13,13.3755]
[1644352476914,77.5346678,112.26,112.12,0.024]
[1644352477120,124.9739678,112.26,112.12,0.024]
[1644352477313,124.9739678,112.26,112.11,0.024]
[1644352477918,179.5439678,112.26,112.11,0.024]
[1644352478118,0.44,112.23,112.11,0.024]
[1644352478319,13.3821,112.2,112.09,0.024]
[1644352478516,42.173039,112.19,112.09,0.024]
[1644352478718,42.173039,112.19,112.08,45.3635]
[1644352479317,55.3569,112.21,112.08,0.274]
[1644352479521,44.5927,112.23,112.09,37.80252014]
[1644352479719,47.2184,112.24,112.1,0.024]
[1644352479916,33.9886,112.26,112.1,11.8752497]
[1644352480117,33.9886,112.26,112.11,0.024]
[1644352480318,44.65100372,112.25,112.11,1.1252497]
[1644352480518,24.07,112.29,112.12,1.1252497]
[1644352480718,16.53386374,112.31,112.17,0.30745529]
[1644352480920,47.7579,112.33,112.18,10.75]
[1644352481117,179.9518,112.37,112.18,16.75]
[1644352481118,33.38116373,112.37,112.18,16.75]
[1644352481325,33.38116373,112.37,112.18,85.44974425]
[1644352481624,41.28383118,112.36,112.19,14.31974425]
[1644352481822,53.64603118,112.36,112.24,13.3622]
[1644352482018,53.64603118,112.36,112.22,10.75]
[1644352482318,38.37114594,112.34,112.2,10.75]
[1644352482720,11.41770588,112.33,112.2,10.75]
[1644352482919,43.59373359,112.32,112.18,35.4391]
[1644352483118,13.3697,112.3,112.19,13.3692]
[1644352483319,46.30351879,112.29,112.19,13.3692]
[1644352484524,61.78097428,112.29,112.17,13.3708]
[1644352484920,61.78097428,112.29,112.17,12.8708]
[1644352485120,59.67321879,112.29,112.17,12.8708]
[1644352485520,59.67321879,112.29,112.16,1.22359777]
[1644352485724,2.54775549,112.28,112.16,1.22359777]
[1644352485921,13.3764,112.25,112.16,1.22359777]
[1644352486124,42.34429659,112.24,112.13,1.22359777]
[1644352486523,42.34429659,112.24,112.14,1.22359777]
[1644352486924,15.48455549,112.23,112.14,1.22359777]
[1644352487123,10.05575549,112.23,112.14,1.22359777]
[1644352487322,10.05575549,112.23,112.13,1.22359777]
[1644352487323,7.948,112.23,112.13,1.22359777]
[1644352487525,7.948,112.23,112.15,1.22359777]
[1644352487724,7.948,112.23,112.14,1.24759777]
[1644352487926,7.948,112.23,112.14,1.22359777]
[1644352488123,34.92214062,112.22,112.13,1.22359777]
[1644352488325,48.30004062,112.22,112.13,1.24759777]
[1644352488523,60.13004062,112.22,112.13,1.24759777]
[1644352488726,60.13004062,112.22,112.14,1.22359777]
[1644352490325,48.30004062,112.22,112.14,1.22359777]
[1644352490728,48.30004062,112.22,112.15,1.22359777]
[1644352491626,48.30004062,112.22,112.16,1.22359777]
[1644352492027,48.30004062,112.22,112.14,1.22359777]
[1644352492227,60.53704062,112.22,112.14,1.22359777]
[1644352492430,47.15914062,112.22,112.16,1.22359777]
[1644352493128,47.15914062,112.22,112.17,1.22359777]
[1644352493530,60.53714062,112.22,112.17,1.22359777]
[1644352494030,60.53714062,112.22,112.16,1.22359777]
[1644352494229,60.53714062,112.22,112.09,45.69293839]
[1644352494230,135.0,112.21,112.14,0.024]
[1644352494532,48.2518363,112.18,112.14,0.024]
[1644352494728,56.0088363,112.18,112.11,2.46271493]
[1644352495135,56.0088363,112.18,112.04,35.68921109]
[1644352495136,83.0,112.14,112.04,35.68921109]
[1644352495330,9.197,112.14,112.04,3.7097099]
[1644352495730,9.197,112.14,112.02,10.75]
[1644352495932,9.197,112.14,112.01,10.75]
[1644352496336,47.60436371,112.14,112.03,14.48975946]
[1644352496531,47.60436371,112.14,112.04,11.19]
[1644352496733,23.6043,112.19,112.04,25.42318801]
[1644352496932,23.6043,112.19,112.05,13.33752145]
[1644352497133,211.9063,112.28,112.05,13.33752145]
[1644352497134,10.75,112.26,112.06,10.75]
[1644352497433,44.5855,112.26,112.07,13.8227]
[1644352497633,13.3769,112.23,112.08,10.75]
[1644352497834,37.75106211,112.22,112.08,10.75]
[1644352498032,37.69106211,112.22,112.06,10.75]
[1644352498234,97.8952176,112.22,112.06,10.75]
[1644352498438,95.78746211,112.22,112.06,24.1339]
[1644352498633,85.03746211,112.22,112.07,1.10009704]
[1644352498835,13.3791,112.21,112.07,1.10009704]
[1644352499034,40.7399444,112.2,112.08,10.75]
[1644352499233,42.84769989,112.2,112.08,10.75]
[1644352499457,44.6177,112.18,112.05,24.1362]
[1644352499640,36.45970001,112.17,112.05,24.1362]
[1644352499839,58.38610001,112.17,112.02,17.04723135]
[1644352500039,58.38610001,112.17,112.02,3.7097099]
[1644352500040,107.4416555,112.17,112.02,3.7097099]
[1644352500244,2.10775549,112.16,112.02,3.7097099]
[1644352500441,78.99152642,112.15,112.02,13.3898]
[1644352500751,34.36182642,112.15,112.03,11.85009704]
[1644352501137,47.74672642,112.15,112.03,10.75]
[1644352501341,47.74672642,112.15,112.03,11.0]
[1644352501537,47.74672642,112.15,112.03,10.75]
[1644352501839,47.74672642,112.15,112.04,13.3865]
[1644352502041,47.74672642,112.15,112.05,10.75]
[1644352502238,47.74672642,112.15,112.02,48.3283099]
[1644352502439,47.74672642,112.15,111.95,9.32456888]
[1644352502440,58.0,112.12,111.95,9.32456888]
[1644352502641,13.397,112.06,111.92,6.63323643]
[1644352502839,13.397,112.06,111.94,1.48258581]
[1644352502840,36.79913123,112.05,111.94,1.48258581]
[1644352503238,36.79913123,112.05,111.91,44.6591]
[1644352503439,36.79913123,112.05,111.9,10.75]
[1644352503638,49.37813123,112.05,111.9,10.75]
[1644352503840,62.77433123,112.05,111.9,10.75]
[1644352504039,62.77433123,112.05,111.9,16.75]
[1644352504238,62.77433123,112.05,111.88,452.21443115]
[1644352504441,75.63208672,112.05,111.88,438.81073115]
[1644352504738,93.52104562,112.05,111.85,68.5389]
[1644352504939,141.80254562,112.05,111.85,68.5389]
[1644352505142,152.38182679,112.05,111.85,68.5389]
[1644352505338,152.82182679,112.05,111.86,15.13204775]
[1644352505539,13.4081,111.99,111.86,1.72594775]
[1644352505747,34.215423,111.98,111.86,1.72594775]
[1644352505945,34.215423,111.98,111.85,23.86]
[1644352506347,34.215423,111.98,111.85,37.2679]
[1644352506971,34.215423,111.98,111.86,1.49754212]
[1644352507348,13.4062,111.97,111.86,1.49754212]
[1644352507547,35.18043364,111.96,111.86,1.49754212]
[1644352507746,17.33411709,111.96,111.87,135.0]
[1644352507946,17.33411709,111.96,111.88,14.03746891]
[1644352508150,10.75,112.0,111.88,14.03746891]
[1644352508348,44.6916,111.99,111.88,14.03746891]
[1644352508750,47.7778,112.03,111.88,27.69206891]
[1644352508952,47.7778,112.03,111.88,45.53883694]
[1644352509148,45.35592833,112.02,111.88,45.53883694]
[1644352509349,24.9799,112.05,111.88,44.44206891]
[1644352509551,2.10775549,112.08,111.88,98.88612578]
[1644352509754,225.803,112.16,111.93,0.32437836]
[1644352509950,23.8606,112.16,111.97,13.3935]
[1644352510253,264.11675898,112.17,111.99,0.32475527]
[1644352510551,40.1383102,112.16,112.02,4.84945869]
[1644352510751,264.11675898,112.17,112.03,16.5627772]
[1644352510953,264.11675898,112.17,112.06,13.68983235]
[1644352511156,264.11675898,112.17,112.07,10.75]
[1644352511353,264.11675898,112.17,112.07,11.8758431]
[1644352511557,23.3606,112.29,112.1,0.32482455]
[1644352511752,13.3715,112.28,112.12,0.32150505]
[1644352511953,23.3606,112.29,112.16,13.3712]
[1644352512154,10.75,112.37,112.17,10.75]
[1644352512349,10.75,112.37,112.17,17.0]
[1644352512550,10.75,112.37,112.17,16.75]
[1644352512752,36.20170124,112.36,112.17,17.0]
[1644352512950,36.20170124,112.36,112.19,13.3677]
[1644352513151,36.64170124,112.36,112.19,13.3677]
[1644352513354,59.44435575,112.36,112.17,16.75]
[1644352513550,37.56071662,112.34,112.17,17.0]
[1644352514154,37.56071662,112.34,112.18,1.10706992]
[1644352514475,37.56071662,112.34,112.19,10.75]
[1644352514653,37.56071662,112.34,112.19,16.75]
[1644352515255,9.31105143,112.33,112.16,24.1209]
[1644352515453,9.31105143,112.33,112.13,44.5697]
[1644352515454,50.83865292,112.32,112.13,55.3197]
[1644352515654,76.55017403,112.32,112.13,61.3197]
[1644352515855,61.53701343,112.32,112.13,61.3197]
[1644352516057,48.50315759,112.3,112.13,16.75]
[1644352516253,74.20715759,112.3,112.14,13.3733]
[1644352516453,2.10775549,112.29,112.14,13.3733]
[1644352516756,42.45774783,112.28,112.12,0.024]
[1644352516952,0.44,112.27,112.12,0.024]
[1644352517156,2.54775549,112.27,112.12,0.024]
[1644352517353,37.67576441,112.26,112.12,0.024]
[1644352517553,47.7645199,112.26,112.09,10.75]
[1644352517754,43.7645199,112.26,112.12,0.024]
[1644352517956,43.7645199,112.26,112.1,0.024]
[1644352518355,34.96287166,112.24,112.1,0.024]
[1644352518556,10.75,112.23,112.08,0.024]
[1644352518757,43.99509723,112.22,112.11,0.024]
[1644352518955,43.99509723,112.22,112.08,10.75]
[1644352519155,54.47609723,112.22,112.09,0.024]
[1644352519358,56.58385272,112.22,112.09,0.024]
[1644352519756,69.96515272,112.22,112.09,0.024]
[1644352519957,69.96515272,112.22,112.08,0.024]
[1644352520159,67.85739723,112.22,112.08,0.024]
[1644352521360,67.85739723,112.22,112.08,13.4048]
[1644352521561,43.99509723,112.22,112.09,0.024]
[1644352521986,43.99509723,112.22,112.1,10.75]
[1644352522185,43.99509723,112.22,112.11,0.024]
[1644352522987,43.99509723,112.22,112.12,1.10706992]
[1644352523181,10.75,112.27,112.12,1.13106992]
[1644352523381,72.103,112.28,112.12,0.25]
[1644352523585,72.103,112.28,112.12,11.0]
[1644352524282,39.60547136,112.27,112.12,11.0]
[1644352524686,39.60547136,112.27,112.12,10.75]
[1644352524883,39.60547136,112.27,112.12,24.1256]
[1644352525084,39.60547136,112.27,112.12,24.1496]
[1644352526084,39.60547136,112.27,112.12,24.3996]
[1644352527684,39.60547136,112.27,112.12,46.93041864]
[1644352528085,39.60547136,112.27,112.12,39.13334872]
[1644352528687,2.10775549,112.26,112.12,24.1496]
[1644352528885,38.736824,112.25,112.12,24.1496]
[1644352530488,60.774424,112.25,112.12,24.1496]
[1644352530690,60.774424,112.25,112.1,13.4022]
[1644352530888,60.774424,112.25,112.11,0.024]
[1644352531088,2.10775549,112.24,112.11,0.024]
[1644352531288,36.79631183,112.23,112.11,0.024]
[1644352532087,38.90406732,112.23,112.11,0.024]
[1644352532490,36.79631183,112.23,112.11,0.024]
[1644352532688,50.17581183,112.23,112.11,0.024]
[1644352533088,9.3171314,112.26,112.11,13.4009]
[1644352533288,23.5335,112.29,112.12,11.88606484]
[1644352533491,23.5335,112.29,112.12,80.99981356]
[1644352533691,98.4579,112.32,112.13,16.09581356]
[1644352533891,24.2338,112.32,112.16,54.87809998]
[1644352534091,183.2176,112.39,112.19,0.44]
[1644352534092,45.1547021,112.33,112.19,0.44]
[1644352534291,45.1547021,112.33,112.2,10.75]
[1644352534692,45.1547021,112.33,112.21,14.98374872]
[1644352534893,45.1547021,112.33,112.22,10.75]
[1644352535094,45.1547021,112.33,112.22,16.75]
[1644352535293,79.692,112.41,112.23,0.44]
[1644352535492,10.75,112.43,112.24,160.76756321]
[1644352535692,208.45995549,112.46,112.24,121.62131193]
[1644352535890,208.45995549,112.46,112.25,14.98374872]
[1644352536091,208.45995549,112.46,112.26,10.75]
[1644352536392,56.16059415,112.43,112.26,11.86206484]
[1644352536592,0.44,112.42,112.26,17.86206484]
[1644352536791,0.44,112.41,112.22,11.86206484]
[1644352536990,47.15454015,112.41,112.22,11.86206484]
[1644352537190,47.15454015,112.41,112.22,12.11206484]
[1644352537191,64.13101179,112.41,112.22,12.11206484]
[1644352537391,63.69101179,112.41,112.22,12.11206484]
[1644352537793,13.3632,112.36,112.23,13.3623]
[1644352537991,41.96615565,112.35,112.23,13.3623]
[1644352538193,41.96615565,112.35,112.22,10.75]
[1644352538792,41.96615565,112.35,112.22,11.0]
[1644352539192,41.96615565,112.35,112.22,10.75]
[1644352539391,55.32965565,112.35,112.22,10.75]
[1644352539592,55.32965565,112.35,112.22,11.0]
[1644352539795,55.32965565,112.35,112.22,10.75]
[1644352539995,55.32965565,112.35,112.22,11.0]
[1644352540596,55.32965565,112.35,112.22,24.3636]
[1644352540796,13.3613,112.37,112.22,40.46408005]
[1644352540996,123.54804749,112.44,112.22,40.46408005]
[1644352541195,58.472,112.42,112.22,59.45841446]
[1644352541795,13.3587,112.39,112.22,59.45841446]
[1644352541993,42.80783102,112.38,112.22,59.45841446]
[1644352543598,42.80783102,112.38,112.22,150.05841446]
[1644352543799,13.3587,112.39,112.22,150.05841446]
[1644352543999,13.3563,112.41,112.24,0.30836906]
[1644352544199,151.34161493,112.49,112.29,13.354]
[1644352544499,75.6865,112.46,112.3,10.75]
[1644352544698,101.4232,112.48,112.3,33.42400261]
[1644352544898,46.03584509,112.47,112.3,33.10048005]
[1644352545099,46.03584509,112.47,112.31,1.11673133]
[1644352545299,41.56391144,112.44,112.28,45.62543133]
[1644352545502,41.56391144,112.44,112.3,0.25]
[1644352545898,41.59465893,112.42,112.28,10.75]
[1644352546100,41.59465893,112.42,112.28,0.25]
[1644352546499,41.59465893,112.42,112.26,33.4431]
[1644352546702,13.3579,112.4,112.26,10.75]
[1644352546902,45.14538299,112.39,112.2,10.75]
[1644352547100,0.44,112.34,112.14,152.7401]
[1644352547302,21.079,112.34,112.14,145.7401]
[1644352547507,43.12049238,112.33,112.15,10.75]
[1644352547703,10.75,112.32,112.15,10.75]
[1644352547904,34.24766575,112.31,112.15,10.75]
[1644352548303,34.24766575,112.31,112.17,13.3696]
[1644352548502,34.24766575,112.31,112.18,10.75]
[1644352548703,34.24766575,112.31,112.18,30.73446497]
[1644352548903,34.24766575,112.31,112.19,13.98446497]
[1644352549203,223.3482,112.36,112.2,10.75]
[1644352549402,223.3482,112.36,112.2,24.59569261]
[1644352549605,223.3482,112.36,112.2,32.1011963]
[1644352549806,13.363,112.35,112.21,28.32542394]
[1644352550002,48.62242726,112.34,112.21,28.32542394]